[Event "MČR v bleskovém šachu družstev 2019"]
[Site "Teplice, Czech Republic"]
[Date "2019.09.14"]
[Round "11.2"]
[White "Polak, Tomas"]
[Black "Mach, Petr"]
[Result "1-0"]
[TimeControl "3 mim. + 2 s"]
[WhiteTitle "GM"]
[WhiteFideId "300560"]
[WhiteElo "2510"]
[BlackElo "1961"]

1. d4 {[%clk 00:03:03]} d5 {[%clk 00:03:02]} {[%emt 00:00:02]} 2. c4 {[%clk
00:03:04]} {[%emt 00:00:02]} c6 {[%clk 00:03:00]} {[%emt 00:00:03]} 3. Nc3
{[%clk 00:03:04]} {[%emt 00:00:02]} e6 {[%clk 00:03:00]} {[%emt 00:00:02]} 4.
Nf3 {[%clk 00:03:04]} {[%emt 00:00:02]} dxc4 {[%clk 00:03:00]} {[%emt
00:00:01]} 5. e3 {[%clk 00:03:02]} {[%emt 00:00:04]} b5 {[%clk 00:02:58]}
{[%emt 00:00:04]} 6. a4 {[%clk 00:03:01]} {[%emt 00:00:03]} Bb4 {[%clk
00:02:54]} {[%emt 00:00:06]} 7. Bd2 {[%clk 00:02:57]} {[%emt 00:00:06]} Bxc3
{[%clk 00:02:53]} {[%emt 00:00:03]} 8. Bxc3 {[%clk 00:02:52]} {[%emt 00:00:08]}
Bb7 {[%clk 00:02:52]} {[%emt 00:00:03]} 9. b3 {[%clk 00:02:43]} {[%emt
00:00:11]} cxb3 {[%clk 00:02:48]} {[%emt 00:00:06]} 10. axb5 {[%clk 00:02:43]}
{[%emt 00:00:02]} Qb6 {[%clk 00:02:15]} {[%emt 00:00:35]} 11. Qxb3 {[%clk
00:02:40]} {[%emt 00:00:06]} cxb5 {[%clk 00:01:53]} {[%emt 00:00:23]} 12. Bxb5+
{[%clk 00:02:18]} {[%emt 00:00:23]} Bc6 {[%clk 00:01:18]} {[%emt 00:00:37]} 13.
Bxc6+ {[%clk 00:02:13]} {[%emt 00:00:07]} Qxc6 {[%clk 00:01:19]} 14. Rxa7
{[%clk 00:01:34]} {[%emt 00:00:42]} Nd7 {[%clk 00:01:07]} {[%emt 00:00:14]} 15.
Rxa8+ {[%clk 00:01:28]} {[%emt 00:00:08]} Qxa8 {[%clk 00:01:08]} 16. O-O {[%clk
00:01:26]} {[%emt 00:00:05]} Ne7 {[%clk 00:01:08]} {[%emt 00:00:02]} 17. Ra1
{[%clk 00:01:18]} {[%emt 00:00:10]} Qc6 {[%clk 00:01:05]} {[%emt 00:00:05]} 18.
Bb4 {[%clk 00:01:16]} {[%emt 00:00:05]} Nd5 {[%clk 00:01:01]} {[%emt 00:00:06]}
19. Ba3 {[%clk 00:01:13]} {[%emt 00:00:04]} Qc3 {[%clk 00:00:51]} {[%emt
00:00:12]} 20. Qxc3 {[%clk 00:01:07]} {[%emt 00:00:08]} Nxc3 {[%clk 00:00:52]}
21. Bb2 {[%clk 00:00:59]} {[%emt 00:00:10]} 1-0

[Event "MČR v bleskovém šachu družstev 2019"]
[Site "Teplice, Czech Republic"]
[Date "2019.09.14"]
[Round "11.3"]
[White "Kovar, Vojtech"]
[Black "Stocek, Jiri"]
[Result "0-1"]
[TimeControl "3 mim. + 2 s"]
[BlackTitle "GM"]
[BlackFideId "304760"]
[WhiteElo "2247"]
[BlackElo "2505"]

1. d4 {[%clk 00:03:02]} {[%emt 00:00:01]} Nf6 {[%clk 00:03:03]} {[%emt
00:00:02]} 2. Nf3 {[%clk 00:03:03]} c5 {[%clk 00:03:03]} {[%emt 00:00:01]} 3.
e3 {[%clk 00:03:04]} {[%emt 00:00:01]} g6 {[%clk 00:03:01]} {[%emt 00:00:04]} 4.
c4 {[%clk 00:03:04]} {[%emt 00:00:02]} Bg7 {[%clk 00:03:02]} {[%emt 00:00:01]}
5. Nc3 {[%clk 00:03:06]} {[%emt 00:00:01]} O-O {[%clk 00:02:58]} {[%emt
00:00:05]} 6. Be2 {[%clk 00:03:07]} {[%emt 00:00:01]} cxd4 {[%clk 00:02:57]}
{[%emt 00:00:02]} 7. Nxd4 {[%clk 00:03:05]} {[%emt 00:00:04]} d5 {[%clk
00:02:48]} {[%emt 00:00:11]} 8. O-O {[%clk 00:03:06]} {[%emt 00:00:01]} dxc4
{[%clk 00:02:48]} {[%emt 00:00:03]} 9. Bxc4 {[%clk 00:03:07]} {[%emt 00:00:01]}
Nbd7 {[%clk 00:02:48]} {[%emt 00:00:02]} 10. Be2 {[%clk 00:03:04]} {[%emt
00:00:05]} a6 {[%clk 00:02:37]} {[%emt 00:00:13]} 11. Bf3 {[%clk 00:03:03]}
{[%emt 00:00:03]} Ne5 {[%clk 00:02:37]} {[%emt 00:00:02]} 12. b3 {[%clk
00:02:44]} {[%emt 00:00:21]} Nxf3+ {[%clk 00:02:07]} {[%emt 00:00:32]} 13. Qxf3
{[%clk 00:02:45]} {[%emt 00:00:01]} e5 {[%clk 00:02:02]} {[%emt 00:00:06]} 14.
Nde2 {[%clk 00:01:52]} {[%emt 00:00:55]} e4 {[%clk 00:02:00]} {[%emt 00:00:04]}
15. Qf4 {[%emt 00:00:35]} 0-1

[Event "MČR v bleskovém šachu družstev 2019"]
[Site "Teplice, Czech Republic"]
[Date "2019.09.14"]
[Round "11.4"]
[White "Vymazal, Bronislav"]
[Black "Popper, Tomas"]
[Result "1-0"]
[TimeControl "3 mim. + 2 s"]
[WhiteFideId "318396"]
[WhiteElo "2309"]
[BlackElo "2088"]

1. g3 {[%clk 00:03:03]} d5 {[%clk 00:03:00]} {[%emt 00:00:04]} 2. Bg2 {[%clk
00:03:04]} c6 {[%clk 00:03:01]} {[%emt 00:00:02]} 3. f4 {[%clk 00:03:04]}
{[%emt 00:00:02]} Nf6 {[%clk 00:02:58]} {[%emt 00:00:05]} 4. Nf3 {[%clk
00:03:05]} {[%emt 00:00:01]} e6 {[%clk 00:02:57]} {[%emt 00:00:04]} 5. d3
{[%clk 00:03:05]} {[%emt 00:00:01]} Bd6 {[%clk 00:02:58]} {[%emt 00:00:01]} 6.
O-O {[%clk 00:03:05]} {[%emt 00:00:03]} O-O {[%clk 00:02:58]} {[%emt 00:00:01]}
7. Nc3 {[%clk 00:03:06]} {[%emt 00:00:02]} Nbd7 {[%clk 00:02:59]} {[%emt
00:00:01]} 8. e4 {[%clk 00:03:06]} {[%emt 00:00:01]} e5 {[%clk 00:02:55]}
{[%emt 00:00:06]} 9. Kh1 {[%clk 00:02:52]} {[%emt 00:00:16]} dxe4 {[%clk
00:02:39]} {[%emt 00:00:18]} 10. dxe4 {[%clk 00:02:52]} {[%emt 00:00:02]} Qe7
{[%clk 00:02:23]} {[%emt 00:00:18]} 11. Qe2 {[%clk 00:02:17]} {[%emt 00:00:37]}
h6 {[%clk 00:02:01]} {[%emt 00:00:25]} 12. Nh4 {[%clk 00:01:53]} {[%emt
00:00:26]} Nb6 {[%clk 00:02:01]} {[%emt 00:00:01]} 13. h3 {[%clk 00:01:12]}
{[%emt 00:00:44]} Bd7 {[%clk 00:01:21]} {[%emt 00:00:42]} 14. Nf5 {[%clk
00:01:05]} {[%emt 00:00:09]} Bxf5 {[%clk 00:01:20]} {[%emt 00:00:02]} 15. exf5
{[%clk 00:01:06]} {[%emt 00:00:01]} exf4 {[%clk 00:01:18]} {[%emt 00:00:05]} 16.
Qxe7 {[%clk 00:01:06]} {[%emt 00:00:01]} Bxe7 {[%clk 00:01:19]} {[%emt
00:00:01]} 17. Bxf4 {[%clk 00:01:07]} {[%emt 00:00:02]} Rad8 {[%clk 00:01:16]}
{[%emt 00:00:05]} 18. Rfe1 {[%clk 00:00:57]} {[%emt 00:00:12]} Bb4 {[%clk
00:01:10]} {[%emt 00:00:07]} 19. Be5 {[%clk 00:00:49]} {[%emt 00:00:11]} Nfd5
{[%clk 00:01:06]} {[%emt 00:00:06]} 20. Nxd5 {[%clk 00:00:42]} {[%emt
00:00:09]} Nxd5 {[%clk 00:01:04]} {[%emt 00:00:04]} 21. c3 {[%clk 00:00:42]}
{[%emt 00:00:02]} Bd6 {[%clk 00:00:40]} {[%emt 00:00:26]} 22. Bxd5 {[%clk
00:00:27]} {[%emt 00:00:18]} cxd5 {[%clk 00:00:33]} {[%emt 00:00:09]} 23. Rad1
{[%clk 00:00:24]} {[%emt 00:00:05]} f6 {[%clk 00:00:29]} {[%emt 00:00:07]} 24.
Bxd6 {[%clk 00:00:24]} {[%emt 00:00:02]} Rxd6 {[%clk 00:00:30]} {[%emt
00:00:01]} 25. Kg2 {[%clk 00:00:20]} {[%emt 00:00:06]} Kf7 {[%clk 00:00:30]}
{[%emt 00:00:02]} 26. Kf3 {[%clk 00:00:20]} {[%emt 00:00:01]} Rfd8 {[%clk
00:00:23]} {[%emt 00:00:09]} 27. Rd4 {[%clk 00:00:21]} {[%emt 00:00:02]} Rb6
{[%clk 00:00:14]} {[%emt 00:00:11]} 28. Re2 {[%clk 00:00:21]} {[%emt 00:00:02]}
a5 {[%clk 00:00:06]} {[%emt 00:00:09]} 29. Red2 {[%clk 00:00:20]} {[%emt
00:00:04]} 1-0

[Event "MČR v bleskovém šachu družstev 2019"]
[Site "Teplice, Czech Republic"]
[Date "2019.09.14"]
[Round "11.5"]
[White "Vykouk, Jan"]
[Black "Bach, Markus"]
[Result "1-0"]
[TimeControl "3 mim. + 2 s"]
[WhiteTitle "IM"]
[BlackFideId "24603376"]
[WhiteElo "2439"]
[BlackElo "2259"]

1. e4 {[%clk 00:03:02]} c6 {[%clk 00:03:00]} {[%emt 00:00:05]} 2. Nf3 {[%clk
00:03:02]} {[%emt 00:00:02]} d5 {[%clk 00:03:00]} {[%emt 00:00:02]} 3. Nc3
{[%clk 00:03:03]} {[%emt 00:00:02]} dxe4 {[%clk 00:02:59]} {[%emt 00:00:03]} 4.
Nxe4 {[%clk 00:03:03]} {[%emt 00:00:02]} Nf6 {[%clk 00:03:00]} 5. Qe2 {[%clk
00:03:03]} {[%emt 00:00:03]} Nxe4 {[%clk 00:02:59]} {[%emt 00:00:03]} 6. Qxe4
{[%clk 00:03:03]} {[%emt 00:00:01]} Nd7 {[%clk 00:03:00]} {[%emt 00:00:02]} 7.
d4 {[%clk 00:03:00]} {[%emt 00:00:05]} Nf6 {[%clk 00:03:00]} {[%emt 00:00:02]}
8. Qd3 {[%clk 00:02:59]} {[%emt 00:00:03]} g6 {[%clk 00:02:59]} {[%emt
00:00:03]} 9. Be2 {[%clk 00:02:58]} {[%emt 00:00:03]} Bf5 {[%clk 00:02:59]}
{[%emt 00:00:02]} 10. Qb3 {[%clk 00:02:55]} {[%emt 00:00:05]} Qb6 {[%clk
00:03:01]} 11. c3 {[%clk 00:02:52]} {[%emt 00:00:05]} Bg7 {[%clk 00:03:01]}
{[%emt 00:00:02]} 12. O-O {[%clk 00:02:47]} {[%emt 00:00:07]} O-O {[%clk
00:03:01]} {[%emt 00:00:02]} 13. Qxb6 {[%clk 00:02:29]} {[%emt 00:00:20]} axb6
{[%clk 00:03:02]} {[%emt 00:00:02]} 14. a3 {[%clk 00:02:30]} {[%emt 00:00:01]}
b5 {[%clk 00:03:02]} {[%emt 00:00:02]} 15. Bg5 {[%clk 00:02:24]} {[%emt
00:00:07]} Rfe8 {[%clk 00:02:44]} {[%emt 00:00:20]} 16. h3 {[%clk 00:02:24]}
{[%emt 00:00:02]} h6 {[%clk 00:02:43]} {[%emt 00:00:03]} 17. Bh4 {[%clk
00:02:19]} {[%emt 00:00:06]} Nd5 {[%clk 00:02:43]} {[%emt 00:00:02]} 18. Bg3
{[%clk 00:02:18]} {[%emt 00:00:02]} Nf6 {[%clk 00:02:15]} {[%emt 00:00:31]} 19.
Be5 {[%clk 00:02:17]} {[%emt 00:00:03]} Be4 {[%clk 00:02:08]} {[%emt 00:00:10]}
20. Rfe1 {[%clk 00:02:11]} {[%emt 00:00:08]} Bd5 {[%clk 00:02:09]} {[%emt
00:00:01]} 21. Nd2 {[%clk 00:02:03]} {[%emt 00:00:09]} Ne4 {[%clk 00:01:53]}
{[%emt 00:00:18]} 22. Bxg7 {[%clk 00:01:51]} {[%emt 00:00:14]} Kxg7 {[%clk
00:01:45]} {[%emt 00:00:10]} 23. Nxe4 {[%clk 00:01:50]} {[%emt 00:00:03]} Bxe4
{[%clk 00:01:46]} {[%emt 00:00:01]} 24. Bxb5 {[%clk 00:01:47]} {[%emt
00:00:05]} Bxg2 {[%clk 00:01:37]} {[%emt 00:00:11]} 25. Kxg2 {[%clk 00:01:44]}
{[%emt 00:00:04]} cxb5 {[%clk 00:01:38]} {[%emt 00:00:02]} 26. Re5 {[%clk
00:01:44]} {[%emt 00:00:02]} b4 {[%clk 00:01:19]} {[%emt 00:00:21]} 27. cxb4
{[%emt 00:00:03]} e6 {[%clk 00:01:17]} {[%emt 00:00:04]} 28. Rb5 {[%clk
00:01:33]} {[%emt 00:00:12]} Red8 {[%clk 00:01:17]} {[%emt 00:00:02]} 29. Rd1
{[%clk 00:01:32]} {[%emt 00:00:03]} Rd7 {[%clk 00:01:18]} {[%emt 00:00:01]} 30.
d5 {[%clk 00:01:29]} {[%emt 00:00:05]} Rad8 {[%clk 00:01:12]} {[%emt 00:00:08]}
31. d6 {[%clk 00:01:30]} {[%emt 00:00:02]} Rc8 {[%clk 00:01:10]} {[%emt
00:00:05]} 32. Rc5 {[%clk 00:01:24]} {[%emt 00:00:07]} Rcd8 {[%clk 00:00:52]}
{[%emt 00:00:21]} 33. Rc7 {[%clk 00:01:25]} {[%emt 00:00:01]} Kf6 {[%clk
00:00:51]} {[%emt 00:00:03]} 34. a4 {[%emt 00:00:23]} e5 35. b5 {[%clk
00:00:59]} {[%emt 00:00:06]} Ke6 {[%clk 00:00:53]} {[%emt 00:00:01]} 36. a5
{[%clk 00:00:50]} {[%emt 00:00:11]} Ra8 {[%clk 00:00:54]} {[%emt 00:00:01]} 37.
b4 {[%clk 00:00:49]} {[%emt 00:00:04]} f5 {[%clk 00:00:51]} {[%emt 00:00:06]}
38. b6 {[%clk 00:00:44]} {[%emt 00:00:07]} g5 {[%clk 00:00:37]} {[%emt
00:00:15]} 39. Rdc1 {[%clk 00:00:45]} {[%emt 00:00:01]} Rad8 {[%clk 00:00:30]}
{[%emt 00:00:09]} 40. Rxd7 {[%clk 00:00:40]} {[%emt 00:00:07]} Rxd7 {[%clk
00:00:31]} {[%emt 00:00:01]} 41. Rc7 {[%clk 00:00:40]} {[%emt 00:00:01]} Kxd6
{[%clk 00:00:31]} {[%emt 00:00:02]} 42. Rc1 {[%clk 00:00:14]} {[%emt 00:00:28]}
Ke6 {[%clk 00:00:31]} {[%emt 00:00:03]} 43. b5 {[%clk 00:00:13]} {[%emt
00:00:03]} Rd5 {[%clk 00:00:22]} {[%emt 00:00:11]} 44. a6 {[%clk 00:00:13]}
{[%emt 00:00:02]} Rxb5 {[%emt 00:00:08]} 45. a7 {[%clk 00:00:12]} {[%emt
00:00:03]} Ra5 {[%clk 00:00:18]} 46. Rc8 {[%clk 00:00:13]} {[%emt 00:00:01]}
Kd5 {[%emt 00:00:10]} 1-0

[Event "MČR v bleskovém šachu družstev 2019"]
[Site "Teplice, Czech Republic"]
[Date "2019.09.14"]
[Round "11.6"]
[White "Buchcar, Tomas"]
[Black "Studnicka, Tomas"]
[Result "0-1"]
[TimeControl "3 mim. + 2 s"]
[BlackTitle "IM"]
[WhiteFideId "328421"]
[WhiteElo "2145"]
[BlackElo "2215"]

1. c4 {[%clk 00:03:02]} {[%emt 00:00:02]} c5 {[%clk 00:03:03]} {[%emt
00:00:01]} 2. g3 {[%clk 00:03:03]} {[%emt 00:00:01]} Nc6 {[%clk 00:03:01]}
{[%emt 00:00:03]} 3. Bg2 {[%clk 00:03:04]} {[%emt 00:00:01]} g6 {[%clk
00:03:02]} {[%emt 00:00:01]} 4. Nc3 {[%clk 00:03:05]} {[%emt 00:00:01]} Bg7
{[%clk 00:03:03]} 5. a3 {[%clk 00:03:05]} {[%emt 00:00:02]} d6 {[%clk
00:03:03]} {[%emt 00:00:03]} 6. Rb1 {[%clk 00:03:06]} {[%emt 00:00:01]} a5
{[%clk 00:02:55]} {[%emt 00:00:09]} 7. e3 {[%clk 00:03:06]} {[%emt 00:00:02]}
Bf5 {[%clk 00:02:36]} {[%emt 00:00:21]} 8. d3 {[%clk 00:03:03]} {[%emt
00:00:06]} Nf6 {[%clk 00:02:36]} {[%emt 00:00:02]} 9. Nge2 {[%clk 00:03:03]}
{[%emt 00:00:02]} Qd7 {[%clk 00:02:27]} {[%emt 00:00:11]} 10. Nf4 {[%clk
00:02:44]} {[%emt 00:00:21]} O-O {[%clk 00:01:46]} {[%emt 00:00:43]} 11. O-O
{[%clk 00:02:39]} {[%emt 00:00:07]} Ne5 {[%clk 00:01:39]} {[%emt 00:00:09]} 12.
e4 {[%clk 00:02:30]} {[%emt 00:00:11]} Bg4 {[%clk 00:01:35]} {[%emt 00:00:06]}
13. f3 {[%clk 00:02:24]} {[%emt 00:00:08]} Be6 {[%clk 00:01:35]} {[%emt
00:00:02]} 14. Nfd5 {[%clk 00:02:22]} {[%emt 00:00:04]} Rab8 {[%clk 00:01:24]}
{[%emt 00:00:13]} 15. Nb6 {[%clk 00:01:13]} {[%emt 00:01:11]} Qd8 {[%clk
00:01:19]} {[%emt 00:00:07]} 16. Ncd5 {[%clk 00:01:10]} {[%emt 00:00:06]} Nc6
{[%clk 00:01:12]} {[%emt 00:00:09]} 17. Qa4 {[%clk 00:01:01]} {[%emt 00:00:11]}
Bxd5 {[%clk 00:01:00]} {[%emt 00:00:14]} 18. Nxd5 {[%clk 00:01:01]} {[%emt
00:00:02]} e6 {[%clk 00:00:57]} {[%emt 00:00:05]} 19. Nc3 {[%clk 00:00:58]}
{[%emt 00:00:05]} Nd7 {[%clk 00:00:45]} {[%emt 00:00:14]} 20. Kh1 {[%clk
00:00:52]} {[%emt 00:00:08]} Nde5 {[%clk 00:00:45]} {[%emt 00:00:02]} 21. Qd1
{[%clk 00:00:51]} {[%emt 00:00:03]} Nd4 {[%clk 00:00:45]} {[%emt 00:00:01]} 22.
f4 {[%clk 00:00:50]} {[%emt 00:00:04]} Nec6 {[%clk 00:00:46]} {[%emt 00:00:01]}
23. Be3 {[%clk 00:00:49]} {[%emt 00:00:02]} b5 {[%clk 00:00:33]} {[%emt
00:00:15]} 24. cxb5 {[%clk 00:00:35]} {[%emt 00:00:16]} Nxb5 {[%clk 00:00:33]}
{[%emt 00:00:02]} 25. Nxb5 {[%clk 00:00:36]} {[%emt 00:00:01]} Rxb5 {[%clk
00:00:33]} {[%emt 00:00:02]} 26. Rf2 {[%clk 00:00:31]} {[%emt 00:00:08]} Nd4
{[%clk 00:00:30]} {[%emt 00:00:05]} 27. Qa4 {[%clk 00:00:24]} {[%emt 00:00:08]}
Qb6 {[%clk 00:00:28]} {[%emt 00:00:05]} 28. h3 {[%clk 00:00:19]} {[%emt
00:00:08]} Rb8 {[%clk 00:00:27]} {[%emt 00:00:02]} 29. Bc1 {[%clk 00:00:15]}
{[%emt 00:00:06]} Rb3 {[%clk 00:00:27]} {[%emt 00:00:02]} 30. Qc4 {[%clk
00:00:13]} {[%emt 00:00:04]} Qb5 {[%clk 00:00:21]} {[%emt 00:00:08]} 31. Ra1
{[%clk 00:00:09]} {[%emt 00:00:07]} Rxd3 {[%clk 00:00:18]} {[%emt 00:00:06]} 32.
Qxb5 {[%clk 00:00:08]} {[%emt 00:00:02]} Rxb5 {[%clk 00:00:19]} 33. Rd2 {[%clk
00:00:08]} {[%emt 00:00:02]} Rxd2 34. Bxd2 {[%clk 00:00:09]} Rxb2 {[%emt
00:00:02]} 35. Bxa5 {[%clk 00:00:09]} {[%emt 00:00:01]} Ne2 {[%clk 00:00:20]}
{[%emt 00:00:02]} 36. Re1 {[%clk 00:00:05]} {[%emt 00:00:05]} Nxg3+ {[%clk
00:00:21]} {[%emt 00:00:01]} 37. Kh2 {[%clk 00:00:07]} Ne2 {[%clk 00:00:20]}
{[%emt 00:00:04]} 38. Bf1 {[%clk 00:00:04]} {[%emt 00:00:05]} Nxf4+ {[%emt
00:00:01]} 39. Kg3 Be5 {[%clk 00:00:20]} {[%emt 00:00:02]} 40. Kf3 {[%clk
00:00:07]} Rb3+ {[%clk 00:00:20]} {[%emt 00:00:02]} 41. Kg4 {[%clk 00:00:08]}
{[%emt 00:00:01]} Rxa3 {[%clk 00:00:21]} {[%emt 00:00:01]} 42. Rb1 {[%clk
00:00:05]} {[%emt 00:00:05]} Kg7 {[%clk 00:00:21]} {[%emt 00:00:02]} 0-1

[Event "MČR v bleskovém šachu družstev 2019"]
[Site "Teplice, Czech Republic"]
[Date "2019.09.14"]
[Round "11.7"]
[White "Cech, Pavel"]
[Black "Tresnak, Filip"]
[Result "1-0"]
[TimeControl "3 mim. + 2 s"]
[WhiteTitle "IM"]
[BlackFideId "333905"]
[WhiteElo "2387"]
[BlackElo "1931"]

1. e4 {[%clk 00:03:02]} {[%emt 00:12:18]} c6 {[%clk 00:02:56]} {[%emt
00:00:13]} 2. d4 {[%clk 00:03:00]} {[%emt 00:00:04]} d5 {[%clk 00:02:57]}
{[%emt 00:00:01]} 3. e5 {[%clk 00:03:01]} Bf5 {[%clk 00:02:58]} 4. Nf3 {[%clk
00:03:02]} {[%emt 00:00:01]} e6 {[%clk 00:03:00]} 5. Nbd2 {[%clk 00:03:03]}
{[%emt 00:00:01]} h6 {[%clk 00:02:57]} {[%emt 00:00:04]} 6. Nb3 {[%clk
00:03:02]} {[%emt 00:00:02]} Qb6 {[%clk 00:02:56]} {[%emt 00:00:03]} 7. Be3
{[%clk 00:03:03]} {[%emt 00:00:02]} Nd7 {[%clk 00:02:55]} {[%emt 00:00:03]} 8.
Be2 {[%clk 00:02:57]} {[%emt 00:00:08]} c5 {[%clk 00:02:49]} {[%emt 00:00:09]}
9. dxc5 {[%clk 00:02:56]} {[%emt 00:00:03]} Nxc5 {[%clk 00:02:48]} {[%emt
00:00:03]} 10. O-O {[%clk 00:02:54]} {[%emt 00:00:04]} Qc7 {[%clk 00:02:35]}
{[%emt 00:00:14]} 11. Bb5+ {[%clk 00:02:12]} {[%emt 00:00:44]} Nd7 {[%clk
00:02:35]} {[%emt 00:00:02]} 12. Nbd4 {[%clk 00:02:05]} {[%emt 00:00:09]} Bh7
{[%clk 00:02:26]} {[%emt 00:00:11]} 13. c4 {[%clk 00:01:59]} {[%emt 00:00:08]}
a6 {[%clk 00:02:20]} {[%emt 00:00:08]} 14. cxd5 {[%clk 00:01:53]} {[%emt
00:00:08]} axb5 {[%clk 00:02:14]} {[%emt 00:00:08]} 15. Rc1 {[%clk 00:01:49]}
{[%emt 00:00:06]} Qb8 {[%clk 00:02:04]} {[%emt 00:00:13]} 16. dxe6 {[%clk
00:01:49]} {[%emt 00:00:02]} Nxe5 {[%clk 00:01:53]} {[%emt 00:00:12]} 17. Nxb5
{[%clk 00:01:34]} {[%emt 00:00:18]} Nd3 {[%clk 00:01:31]} {[%emt 00:00:24]} 18.
exf7+ {[%clk 00:01:06]} {[%emt 00:00:30]} Kxf7 {[%clk 00:01:28]} {[%emt
00:00:06]} 19. Qb3+ {[%clk 00:01:07]} {[%emt 00:00:01]} Ke8 {[%clk 00:01:07]}
{[%emt 00:00:23]} 20. Nc7+ {[%clk 00:01:04]} {[%emt 00:00:04]} Kd8 {[%clk
00:01:05]} {[%emt 00:00:04]} 21. Qd5+ {[%clk 00:00:57]} {[%emt 00:00:09]} Ke7
{[%clk 00:00:46]} {[%emt 00:00:21]} 22. Qe6+ {[%clk 00:00:57]} {[%emt
00:00:01]} Kd8 {[%clk 00:00:43]} {[%emt 00:00:06]} 23. Qe8# {[%clk 00:00:57]}
{[%emt 00:00:01]} 1-0

[Event "MČR v bleskovém šachu družstev 2019"]
[Site "Teplice, Czech Republic"]
[Date "2019.09.14"]
[Round "11.8"]
[White "Prudek, Jiri"]
[Black "Sodoma, Jan"]
[Result "1/2-1/2"]
[TimeControl "3 mim. + 2 s"]
[BlackTitle "IM"]
[WhiteFideId "327310"]
[WhiteElo "1962"]
[BlackElo "2193"]

1. e4 {[%clk 00:03:03]} {[%emt 00:13:20]} e5 {[%clk 00:03:02]} {[%emt
00:00:02]} 2. Nf3 {[%clk 00:03:04]} {[%emt 00:00:01]} Nc6 {[%clk 00:03:03]}
{[%emt 00:00:01]} 3. Bb5 {[%clk 00:03:05]} a6 {[%clk 00:03:04]} {[%emt
00:00:01]} 4. Ba4 {[%clk 00:03:06]} {[%emt 00:00:01]} Nf6 {[%clk 00:03:05]} 5.
d3 {[%clk 00:03:04]} {[%emt 00:00:04]} b5 {[%clk 00:03:05]} {[%emt 00:00:01]} 6.
Bb3 {[%clk 00:03:05]} Be7 {[%clk 00:03:06]} 7. O-O {[%clk 00:03:05]} {[%emt
00:00:04]} O-O {[%clk 00:03:05]} {[%emt 00:00:02]} 8. h3 {[%clk 00:03:05]}
{[%emt 00:00:01]} d6 {[%clk 00:02:56]} {[%emt 00:00:12]} 9. a4 {[%clk
00:03:05]} {[%emt 00:00:02]} b4 {[%clk 00:02:43]} {[%emt 00:00:15]} 10. a5
{[%emt 00:00:03]} Be6 {[%clk 00:02:35]} {[%emt 00:00:08]} 11. c3 {[%clk
00:02:59]} {[%emt 00:00:09]} Rb8 {[%clk 00:02:23]} {[%emt 00:00:14]} 12. Bxe6
fxe6 {[%clk 00:02:23]} 13. Ng5 {[%clk 00:02:49]} {[%emt 00:00:04]} Qd7 {[%clk
00:02:20]} {[%emt 00:00:04]} 14. Bd2 {[%clk 00:02:34]} {[%emt 00:00:18]} d5
{[%clk 00:02:01]} {[%emt 00:00:21]} 15. f4 {[%clk 00:02:05]} {[%emt 00:00:31]}
h6 {[%clk 00:01:52]} {[%emt 00:00:11]} 16. Nf3 {[%clk 00:02:05]} {[%emt
00:00:02]} dxe4 {[%clk 00:01:50]} {[%emt 00:00:04]} 17. Nxe5 {[%clk 00:01:58]}
{[%emt 00:00:10]} Nxe5 {[%clk 00:01:05]} {[%emt 00:00:47]} 18. fxe5 {[%clk
00:01:58]} {[%emt 00:00:01]} Nd5 {[%clk 00:01:04]} {[%emt 00:00:03]} 19. dxe4
{[%clk 00:01:43]} {[%emt 00:00:17]} Bc5+ {[%clk 00:01:01]} {[%emt 00:00:05]} 20.
Kh1 {[%clk 00:01:42]} {[%emt 00:00:04]} Qb5 {[%clk 00:00:41]} {[%emt 00:00:22]}
21. Rf3 {[%clk 00:01:19]} {[%emt 00:00:25]} Rxf3 {[%clk 00:00:34]} {[%emt
00:00:09]} 22. gxf3 {[%clk 00:01:15]} {[%emt 00:00:05]} Ne7 {[%clk 00:00:11]}
{[%emt 00:00:25]} 23. cxb4 {[%clk 00:01:11]} {[%emt 00:00:07]} Bxb4 {[%clk
00:00:12]} {[%emt 00:00:02]} 24. Nc3 {[%clk 00:01:08]} {[%emt 00:00:04]} Bxc3
{[%clk 00:00:11]} {[%emt 00:00:03]} 25. Bxc3 {[%clk 00:01:08]} {[%emt
00:00:03]} Ng6 {[%clk 00:00:08]} {[%emt 00:00:04]} 26. Qf1 {[%clk 00:00:46]}
{[%emt 00:00:24]} Nxe5 {[%clk 00:00:06]} {[%emt 00:00:05]} 27. Qxb5 {[%clk
00:00:45]} {[%emt 00:00:02]} Rxb5 {[%clk 00:00:07]} 28. Kg2 {[%clk 00:00:45]}
{[%emt 00:00:04]} Kf7 {[%clk 00:00:05]} {[%emt 00:00:03]} 29. f4 {[%clk
00:00:43]} {[%emt 00:00:04]} Nc4 {[%clk 00:00:05]} {[%emt 00:00:02]} 30. Rd1
{[%clk 00:00:40]} {[%emt 00:00:05]} Nxb2 {[%clk 00:00:04]} {[%emt 00:00:03]} 31.
Rd7+ {[%clk 00:00:39]} {[%emt 00:00:03]} Ke8 {[%clk 00:00:04]} {[%emt
00:00:02]} 32. Rxc7 {[%clk 00:00:39]} {[%emt 00:00:03]} Nd3 {[%clk 00:00:04]}
{[%emt 00:00:02]} 33. Bxg7 {[%clk 00:00:35]} {[%emt 00:00:07]} Nxf4+ {[%clk
00:00:04]} {[%emt 00:00:01]} 34. Kf3 {[%clk 00:00:36]} Ng6 {[%clk 00:00:04]}
{[%emt 00:00:03]} 35. Bxh6 {[%clk 00:00:37]} {[%emt 00:00:02]} Rh5 {[%clk
00:00:05]} 36. Bg7 {[%clk 00:00:32]} {[%emt 00:00:06]} Rxh3+ {[%clk 00:00:06]}
{[%emt 00:00:02]} 37. Kg4 {[%clk 00:00:33]} {[%emt 00:00:02]} Ra3 {[%clk
00:00:06]} {[%emt 00:00:02]} 38. Rc6 {[%clk 00:00:30]} {[%emt 00:00:05]} Rxa5
{[%clk 00:00:05]} {[%emt 00:00:03]} 39. Rxe6+ {[%clk 00:00:30]} {[%emt
00:00:02]} Kf7 {[%clk 00:00:06]} 40. Bc3 {[%clk 00:00:19]} {[%emt 00:00:14]}
Kxe6 {[%clk 00:00:07]} {[%emt 00:00:01]} 41. Bxa5 {[%clk 00:00:20]} Ke5 {[%clk
00:00:06]} {[%emt 00:00:03]} 42. Kf3 {[%clk 00:00:20]} {[%emt 00:00:02]} Nh4+
{[%clk 00:00:06]} {[%emt 00:00:02]} 43. Ke3 {[%clk 00:00:21]} {[%emt 00:00:01]}
Ng6 {[%clk 00:00:07]} {[%emt 00:00:01]} 44. Kf3 {[%clk 00:00:23]} {[%emt
00:00:01]} 1/2-1/2